fUST/lending_fUST_20241021
["ID","MTS","AMOUNT","RATE_DAILY","PERIOD"]
[340568187,1729502832773,-151.0,0.0001479,2]
[340568188,1729502832793,-251.746443,0.0001479,2]
[340568189,1729502832812,-151.0,0.0001479,2]
[340568190,1729502832833,-151.0,0.0001479,2]
[340568191,1729502832853,-151.0,0.0001479,2]
[340568192,1729502832873,-150.112233,0.000148,2]
[340568193,1729502832893,-5000.0,0.000148,2]
[340568194,1729502832913,-150.112233,0.000149,2]
[340568195,1729502832936,-20000.0,0.00015,3]
[340568196,1729502832960,-1000.0,0.00015,7]
[340568197,1729502832980,-150.112233,0.00015,2]
[340568198,1729502833000,-153.0,0.00015068,2]
[340568199,1729502833021,-150.112233,0.000152,2]
[340568200,1729502833041,-150.112233,0.000153,2]
[340568201,1729502833061,-500.0,0.00015312,2]
[340568202,1729502833082,-500.0,0.00015331,2]
[340568203,1729502833103,-739.6224018,0.0001539,2]
[340568204,1729502833129,-697.81902711,0.00015471,2]
[340568205,1729502833151,-150.112233,0.000155,2]
[340568206,1729502833172,-150.112233,0.000155,2]
[340568207,1729502833193,-150.112233,0.000155,2]
[340568208,1729502833217,-154.41706891,0.0001568,2]
[340568209,1729502833238,-150.112233,0.000157,2]
[340568210,1729502833260,-151.0,0.0001578,2]
[340568211,1729502833281,-151.0,0.0001578,2]
[340568212,1729502833302,-151.0,0.0001578,2]
[340568213,1729502833322,-251.746443,0.0001578,2]
[340568214,1729502833343,-151.0,0.0001578,2]
[340568215,1729502833367,-251.746443,0.0001578,2]
[340568216,1729502833388,-269.914774,0.0001578,2]
[340568217,1729502833408,-151.0,0.0001578,2]
[340568218,1729502833430,-151.0,0.0001578,2]
[340568219,1729502833452,-49857.5307667,0.0001578,2]
[340568220,1729502833474,-9354.2033938,0.0001578,2]
[340568221,1729502833495,-151.0,0.0001579,2]
[340568222,1729502833517,-151.0,0.0001579,2]
[340568223,1729502833538,-150.112233,0.000158,2]
[340568224,1729502833559,-150.112233,0.000158,2]
[340568225,1729502833579,-739.6224018,0.0001589,2]
[340568226,1729502833603,-150.112233,0.000159,2]
[340568227,1729502833629,-500.0,0.00016,10]
[340568228,1729502833650,-500.0,0.00016,10]
[340568229,1729502833671,-500.0,0.00016,10]
[340568230,1729502833692,-500.0,0.00016,10]
[340568231,1729502833713,-500.0,0.00016,10]
[340568232,1729502833733,-500.0,0.00016,10]
[340568233,1729502833753,-500.0,0.00016,10]
[340568234,1729502833774,-1000.0,0.00016,8]
[340568235,1729502833796,-150.112233,0.00016,2]
[340568236,1729502833817,-150.112233,0.00016,2]
[340568237,1729502833839,-150.112233,0.000161,2]
[340568238,1729502833859,-150.112233,0.000161,2]
[340568239,1729502833882,-12455.73132105,0.00016111,2]
[340568240,1729502833903,-500.0,0.00016153,2]
[340568241,1729502833925,-164.0,0.0001616,2]
[340568242,1729502833946,-299.93941073,0.00016174,2]
[340568243,1729502833967,-304.1164243,0.000162,2]
[340568244,1729502833989,-150.112233,0.000162,2]
[340568245,1729502834010,-150.112233,0.000162,2]
[340568246,1729502834033,-24928.7653834,0.00016254,2]
[340568247,1729502834058,-18708.4067876,0.00016254,2]
[340568248,1729502834080,-151.0,0.00016254,2]
[340568249,1729502834104,-156.740616,0.00016254,2]
[340568250,1729502834129,-244.673614,0.00016254,2]
[340568251,1729502834151,-251.746443,0.00016254,2]
[340568252,1729502834408,-182.05752,0.00016254,2]
[340568253,1729502834430,-251.746443,0.00016254,2]
[340568254,1729502834453,-151.0,0.00016254,2]
[340568255,1729502834475,-151.0,0.00016254,2]
[340568256,1729502834498,-151.0,0.00016254,2]
[340568257,1729502834522,-14031.3050907,0.00016264,2]
[340568258,1729502834544,-151.0,0.00016264,2]
[340568259,1729502834565,-151.0,0.00016264,2]
[340568260,1729502834586,-73121.14496635,0.00016274,2]
[340568261,1729502834802,-66737.36108259,0.00016274,2]
[340568262,1729502834824,-151.0,0.00016274,2]
[340568263,1729502834847,-151.0,0.00016274,2]
[340568264,1729502834868,-251.746443,0.00016274,2]
[340568265,1729502834890,-251.746443,0.00016274,2]
[340568266,1729502834912,-151.0,0.00016274,2]
[340568267,1729502834934,-239.128148,0.00016274,2]
[340568268,1729502834962,-151.0,0.00016274,2]
[340568269,1729502834985,-151.0,0.0001629,2]
[340568270,1729502835008,-4732.30541141,0.0001629,2]
[340568271,1729502836110,-9298.99967929,0.0001629,2]
[340568272,1729502836136,-9078.93221771,0.000163,2]
[340568273,1729502848178,-121739.91769254,0.000163,2]
[340568274,1729502848199,-151.0,0.000163,2]
[340568275,1729502848222,-500.0,0.000163,2]
[340568276,1729502848244,-151.0,0.000163,2]
[340568277,1729502848266,-251.746443,0.000163,2]
[340568278,1729502848286,-251.746443,0.000163,2]
[340568279,1729502848308,-151.0,0.000163,2]
[340568280,1729502848329,-151.0,0.000163,2]
[340568281,1729502848350,-697.81902711,0.00016301,2]
[340568282,1729502848370,-2268.38850496,0.00016338,2]
[340568283,1729502848389,-739.6224018,0.0001639,2]
[340568284,1729502848422,-1008.7311431,0.000164,2]
[340568285,1729502848442,-5000.0,0.00016427,2]
[340568286,1729502848461,-5000.0,0.00016427,2]
[340568287,1729502848482,-1808.74352577,0.00016427,2]
[340568288,1729502848503,-4677.1016969,0.00016428,2]
[340568289,1729502848523,-500.0,0.00016438,2]
[340568290,1729502848545,-500.0,0.00016438,2]
[340568291,1729502848565,-500.0,0.00016438,2]
[340568292,1729502848585,-500.0,0.00016438,2]
[340568293,1729502848605,-627.08258354,0.00016438,2]
[340568294,1729502848625,-221.85846469,0.00016438,2]
[340568295,1729502848649,-500.0,0.00016438,2]
[340568296,1729502848677,-500.0,0.00016438,2]
[340568297,1729502848697,-500.0,0.00016438,2]
[340568298,1729502848716,-500.0,0.00016438,2]
[340568299,1729502848736,-876.24,0.00016438,2]
[340568300,1729502848755,-500.0,0.00016438,2]
[340568301,1729502848775,-500.0,0.00016438,2]
[340568302,1729502848795,-500.0,0.00016438,2]
[340568303,1729502848815,-543.52,0.00016438,2]
[340568304,1729502848836,-500.0,0.00016438,2]
[340568305,1729502848856,-500.0,0.00016438,2]
[340568306,1729502848876,-500.0,0.00016438,2]
[340568307,1729502848901,-500.0,0.00016438,2]
[340568308,1729502848929,-500.0,0.00016438,2]
[340568309,1729502848950,-500.0,0.00016438,2]
[340568310,1729502848971,-500.0,0.00016438,2]
[340568311,1729502848991,-500.0,0.00016438,2]
[340568312,1729502849011,-500.0,0.00016438,2]
[340568313,1729502849031,-1299.83,0.00016438,2]
[340568314,1729502849051,-500.0,0.00016438,2]
[340568315,1729502849070,-500.0,0.00016438,2]
[340568316,1729502849090,-500.0,0.00016438,2]
[340568317,1729502849110,-500.0,0.00016438,2]
[340568318,1729502849133,-500.0,0.00016438,2]
[340568319,1729502849154,-500.0,0.00016438,2]
[340568320,1729502849175,-2111.68,0.00016438,2]
[340568321,1729502849195,-500.0,0.00016438,2]
[340568322,1729502849217,-500.0,0.00016438,2]
[340568323,1729502849237,-500.0,0.00016438,2]
[340568324,1729502849257,-500.0,0.00016438,2]
[340568325,1729502849276,-500.0,0.00016438,2]
[340568326,1729502849296,-500.0,0.00016438,2]
[340568327,1729502849315,-500.0,0.00016438,2]
[340568328,1729502849335,-500.0,0.00016438,2]
[340568329,1729502849355,-500.0,0.00016438,2]
[340568330,1729502849375,-505.31204079,0.00016438,2]
[340568331,1729502849395,-500.0,0.00016438,2]
[340568332,1729502849415,-500.0,0.00016438,2]
[340568333,1729502849436,-500.0,0.00016438,2]
[340568334,1729502849455,-500.0,0.00016438,2]
[340568335,1729502849475,-500.0,0.00016438,2]
[340568336,1729502849499,-500.0,0.00016438,2]
[340568337,1729502849518,-500.0,0.00016438,2]
[340568338,1729502849538,-500.0,0.00016438,2]
[340568339,1729502849558,-1250.75,0.00016438,2]
[340568340,1729502849578,-500.0,0.00016438,2]
[340568341,1729502849598,-500.0,0.00016438,2]
[340568342,1729502849618,-500.0,0.00016438,2]
[340568343,1729502849638,-500.0,0.00016438,2]
[340568344,1729502849660,-500.0,0.00016438,2]
[340568345,1729502849680,-500.0,0.00016438,2]
[340568346,1729502849700,-501.33089659,0.00016438,2]
[340568347,1729502849720,-1038.73,0.00016438,2]
[340568348,1729502849740,-651.5,0.00016438,2]
[340568349,1729502849760,-500.0,0.00016438,2]
[340568350,1729502849780,-500.0,0.00016438,2]
[340568351,1729502849800,-918.52,0.00016438,2]
[340568352,1729502849821,-508.49883632,0.00016438,2]
[340568353,1729502849845,-519.28310739,0.00016438,2]
[340568354,1729502849866,-182.6837145,0.00016438,2]
[340568355,1729502849886,-500.0,0.00016438,2]
[340568356,1729502849907,-500.0,0.00016438,2]
[340568357,1729502849927,-500.0,0.00016438,2]
[340568358,1729502849948,-500.0,0.00016438,2]
[340568359,1729502849970,-500.0,0.00016438,2]
[340568360,1729502849991,-500.0,0.00016438,2]
[340568361,1729502850011,-500.0,0.00016438,2]
[340568362,1729502850033,-500.0,0.00016438,2]
[340568363,1729502850053,-500.0,0.00016438,2]
[340568364,1729502850073,-500.0,0.00016438,2]
[340568365,1729502850093,-1590.63,0.00016438,2]
[340568366,1729502850114,-500.0,0.00016438,2]
[340568367,1729502850137,-500.0,0.00016438,2]
[340568368,1729502850159,-500.0,0.00016438,2]
[340568369,1729502850180,-1571.14,0.00016438,2]
[340568370,1729502850202,-500.0,0.00016438,2]
[340568371,1729502850226,-500.0,0.00016438,2]
[340568372,1729502850246,-500.0,0.00016438,2]
[340568373,1729502850267,-500.0,0.00016438,2]
[340568374,1729502850288,-175.94568015,0.00016438,2]
[340568375,1729502850308,-500.0,0.00016438,2]
[340568376,1729502850330,-506.51053574,0.00016438,2]
[340568377,1729502850350,-500.0,0.00016438,2]
[340568378,1729502850371,-500.0,0.00016438,2]
[340568379,1729502850393,-500.0,0.00016438,2]
[340568380,1729502850416,-500.0,0.00016438,2]
[340568381,1729502850436,-500.0,0.00016438,2]
[340568382,1729502850457,-509.11221211,0.00016438,2]
[340568383,1729502850478,-503.12939412,0.00016438,2]
[340568384,1729502850498,-2255.98,0.00016438,2]
[340568385,1729502850519,-500.0,0.00016438,2]
[340568386,1729502850554,-1376.51,0.00016438,2]
[340568387,1729502850577,-500.0,0.00016438,2]
[340568388,1729502850598,-500.0,0.00016438,2]
[340568389,1729502850620,-500.0,0.00016438,2]
[340568390,1729502850641,-500.0,0.00016438,2]
[340568391,1729502850663,-1047.11,0.00016438,2]
[340568392,1729502850685,-500.0,0.00016438,2]
[340568393,1729502850705,-1525.69,0.00016438,2]
[340568394,1729502850727,-500.0,0.00016438,2]
[340568395,1729502850748,-500.0,0.00016438,2]
[340568396,1729502850769,-500.0,0.00016438,2]
[340568397,1729502850790,-500.0,0.00016438,2]
[340568398,1729502850812,-500.0,0.00016438,2]
[340568399,1729502850832,-500.0,0.00016438,2]
[340568400,1729502850853,-500.0,0.00016438,2]
[340568401,1729502850873,-500.0,0.00016438,2]
[340568402,1729502850895,-500.0,0.00016438,2]
[340568403,1729502850922,-500.0,0.00016438,2]
[340568404,1729502850942,-500.0,0.00016438,2]
[340568405,1729502850966,-177.60524672,0.00016438,2]
[340568406,1729502850988,-500.0,0.00016438,2]
[340568407,1729502851009,-500.0,0.00016438,2]
[340568408,1729502851030,-500.0,0.00016438,2]
[340568409,1729502851051,-500.0,0.00016438,2]
[340568410,1729502851071,-500.0,0.00016438,2]
[340568411,1729502851092,-503.11561497,0.00016438,2]
[340568412,1729502851112,-500.0,0.00016438,2]
[340568413,1729502851135,-553.3471635,0.00016438,2]
[340568414,1729502851158,-799.62,0.00016438,2]
[340568415,1729502851179,-500.0,0.00016438,2]
[340568416,1729502851199,-500.0,0.00016438,2]
[340568417,1729502851511,-500.0,0.00016438,2]
[340568418,1729502851532,-500.0,0.00016438,2]
[340568419,1729502851553,-500.0,0.00016438,2]
[340568420,1729502851572,-500.0,0.00016438,2]
[340568421,1729502851592,-506.03700566,0.00016438,2]
[340568422,1729502851612,-500.0,0.00016438,2]
[340568423,1729502851632,-500.0,0.00016438,2]
[340568424,1729502851654,-1706.82,0.00016438,2]
[340568425,1729502851674,-500.0,0.00016438,2]
[340568426,1729502851694,-500.0,0.00016438,2]
[340568427,1729502851714,-500.0,0.00016438,2]
[340568428,1729502851734,-500.0,0.00016438,2]
[340568429,1729502851755,-558.86,0.00016438,2]
[340568430,1729502851780,-500.0,0.00016438,2]
[340568431,1729502851807,-500.0,0.00016438,2]
[340568432,1729502851829,-500.0,0.00016438,2]
[340568433,1729502851850,-500.0,0.00016438,2]
[340568434,1729502851870,-500.0,0.00016438,2]
[340568435,1729502851890,-500.0,0.00016438,2]
[340568436,1729502851912,-500.0,0.00016438,2]
[340568437,1729502851932,-500.0,0.00016438,2]
[340568438,1729502851958,-1759.64,0.00016438,2]
[340568439,1729502851978,-500.0,0.00016438,2]
[340568440,1729502851999,-500.0,0.00016438,2]
[340568441,1729502852018,-568.61416287,0.00016438,2]
[340568442,1729502852039,-500.0,0.00016438,2]
[340568443,1729502852059,-500.0,0.00016438,2]
[340568444,1729502852079,-1121.25,0.00016438,2]
[340568445,1729502852100,-610.692791,0.00016438,2]
[340568446,1729502852120,-160.83616653,0.00016438,2]
[340568447,1729502852144,-500.0,0.00016438,2]
[340568448,1729502852167,-499.00634557,0.00016438,2]
[340568449,1729502852188,-500.0,0.00016438,2]
[340568450,1729502852211,-500.0,0.00016438,2]
[340568451,1729502852231,-500.0,0.00016438,2]
[340568452,1729502852251,-500.0,0.00016438,2]
[340568453,1729502852271,-500.0,0.00016438,2]
[340568454,1729502852291,-500.0,0.00016438,2]
[340568455,1729502852311,-512.81560826,0.00016438,2]
[340568456,1729502852332,-500.0,0.00016438,2]
[340568457,1729502852354,-500.0,0.00016438,2]
[340568458,1729502852374,-500.0,0.00016438,2]
[340568459,1729502852396,-500.0,0.00016438,2]
[340568460,1729502852418,-500.0,0.00016438,2]
[340568461,1729502852439,-500.0,0.00016438,2]
[340568462,1729502852460,-500.0,0.00016438,2]
[340568463,1729502852480,-500.0,0.00016438,2]
[340568464,1729502852501,-500.0,0.00016438,2]
[340568465,1729502852521,-154.66719884,0.00016438,2]
[340568466,1729502852542,-500.0,0.00016438,2]
[340568467,1729502852562,-1113.79,0.00016438,2]
[340568468,1729502852582,-503.217242,0.00016438,2]
[340568469,1729502852602,-701.95,0.00016438,2]
[340568470,1729502852623,-500.0,0.00016438,2]
[340568471,1729502852644,-500.0,0.00016438,2]
[340568472,1729502852665,-500.0,0.00016438,2]
[340568473,1729502852685,-548.83062474,0.00016438,2]
[340568474,1729502852705,-512.06,0.00016438,2]
[340568475,1729502852726,-1614.97,0.00016438,2]
[340568476,1729502852747,-500.0,0.00016438,2]
[340568477,1729502852767,-500.0,0.00016438,2]
[340568478,1729502852787,-689.37,0.00016438,2]
[340568479,1729502852808,-500.0,0.00016438,2]
[340568480,1729502852828,-195.93468051,0.00016438,2]
[340568481,1729502852849,-500.0,0.00016438,2]
[340568482,1729502852869,-514.19307565,0.00016438,2]
[340568483,1729502852890,-500.0,0.00016438,2]
[340568484,1729502852911,-500.0,0.00016438,2]
[340568485,1729502852931,-1136.19,0.00016438,2]
[340568486,1729502852953,-500.0,0.00016438,2]
[340568487,1729502852974,-917.71,0.00016438,2]
[340568488,1729502852995,-599.17,0.00016438,2]
[340568489,1729502853016,-1142.54,0.00016438,2]
[340568490,1729502853038,-500.0,0.00016438,2]
[340568491,1729502853060,-500.0,0.00016438,2]
[340568492,1729502853082,-500.0,0.00016438,2]
[340568493,1729502853104,-924.45,0.00016438,2]
[340568494,1729502853125,-818.17,0.00016438,2]
[340568495,1729502853151,-638.01,0.00016438,2]
[340568496,1729502853172,-500.0,0.00016438,2]
[340568497,1729502853193,-500.0,0.00016438,2]
[340568498,1729502853217,-500.0,0.00016438,2]
[340568499,1729502853239,-500.0,0.00016438,2]
[340568500,1729502853261,-500.0,0.00016438,2]
[340568501,1729502853283,-500.0,0.00016438,2]
[340568502,1729502853305,-500.0,0.00016438,2]
[340568503,1729502853325,-1644.51,0.00016438,2]
[340568504,1729502853347,-500.0,0.00016438,2]
[340568505,1729502853369,-500.0,0.00016438,2]
[340568506,1729502853391,-500.0,0.00016438,2]
[340568507,1729502853413,-1953.9,0.00016438,2]
[340568508,1729502853435,-500.0,0.00016438,2]
[340568509,1729502853467,-500.0,0.00016438,2]
[340568510,1729502853498,-500.0,0.00016438,2]
[340568511,1729502853521,-500.0,0.00016438,2]
[340568512,1729502853544,-500.0,0.00016438,2]
[340568513,1729502853570,-500.0,0.00016438,2]
[340568514,1729502853594,-2553.31,0.00016438,2]
[340568515,1729502853617,-626.53754367,0.00016438,2]
[340568516,1729502853641,-500.0,0.00016438,2]
[340568517,1729502853670,-500.0,0.00016438,2]
[340568518,1729502853694,-500.0,0.00016438,2]
[340568519,1729502853717,-413.41771274,0.00016438,2]
[340568520,1729502853742,-692.71,0.00016438,2]
[340568521,1729502853766,-500.0,0.00016438,2]
[340568522,1729502853790,-500.0,0.00016438,2]
[340568523,1729502853814,-1178.62,0.00016438,2]
[340568524,1729502853838,-500.0,0.00016438,2]
[340568525,1729502853862,-500.0,0.00016438,2]
[340568526,1729502853885,-500.0,0.00016438,2]
[340568527,1729502853909,-500.0,0.00016438,2]
[340568528,1729502853933,-500.0,0.00016438,2]
[340568529,1729502853962,-500.0,0.00016438,2]
[340568530,1729502853987,-500.0,0.00016438,2]
[340568531,1729502854011,-500.0,0.00016438,2]
[340568532,1729502854036,-706.37,0.00016438,2]
[340568533,1729502854059,-1622.67,0.00016438,2]
[340568534,1729502854089,-1003.14,0.00016438,2]
[340568535,1729502854113,-2820.41,0.00016438,2]
[340568536,1729502854138,-500.0,0.00016438,2]
[340568537,1729502854168,-988.91,0.00016438,2]
[340568538,1729502854192,-500.0,0.00016438,2]
[340568539,1729502854217,-500.0,0.00016438,2]
[340568540,1729502854242,-1135.22,0.00016438,2]
[340568541,1729502854267,-500.0,0.00016438,2]
[340568542,1729502854290,-588.78,0.00016438,2]
[340568543,1729502854314,-500.0,0.00016438,2]
[340568544,1729502854337,-500.0,0.00016438,2]
[340568545,1729502854361,-500.0,0.00016438,2]
[340568546,1729502854385,-500.0,0.00016438,2]
[340568547,1729502854415,-500.0,0.00016438,2]
[340568548,1729502854439,-1012.48,0.00016438,2]
[340568549,1729502854462,-500.0,0.00016438,2]
[340568550,1729502854486,-500.0,0.00016438,2]
[340568551,1729502854510,-500.0,0.00016438,2]
[340568552,1729502854534,-500.0,0.00016438,2]
[340568553,1729502854558,-1144.94,0.00016438,2]
[340568554,1729502854581,-500.0,0.00016438,2]
[340568555,1729502854604,-500.0,0.00016438,2]
[340568556,1729502854627,-500.0,0.00016438,2]
[340568557,1729502854650,-556.42282369,0.00016438,2]
[340568558,1729502854674,-514.1968838,0.00016438,2]
[340568559,1729502854696,-500.0,0.00016438,2]
[340568560,1729502854718,-500.0,0.00016438,2]
[340568561,1729502854740,-500.0,0.00016438,2]
[340568562,1729502854761,-500.0,0.00016438,2]
[340568563,1729502854783,-500.0,0.00016438,2]
[340568564,1729502854805,-500.0,0.00016438,2]
[340568565,1729502854826,-1243.58,0.00016438,2]
[340568566,1729502854847,-500.0,0.00016438,2]
[340568567,1729502854868,-910.93,0.00016438,2]
[340568568,1729502854890,-2795.23,0.00016438,2]
[340568569,1729502854913,-2377.18,0.00016438,2]
[340568570,1729502854934,-751.96,0.00016438,2]
[340568571,1729502854958,-500.0,0.00016438,2]
[340568572,1729502854980,-500.0,0.00016438,2]
[340568573,1729502855001,-500.0,0.00016438,2]
[340568574,1729502855022,-500.0,0.00016438,2]
[340568575,1729502855043,-588.74,0.00016438,2]
[340568576,1729502855065,-500.0,0.00016438,2]
[340568577,1729502855086,-500.0,0.00016438,2]
[340568578,1729502855108,-2470.74,0.00016438,2]
[340568579,1729502855131,-556.66,0.00016438,2]
[340568580,1729502855154,-500.0,0.00016438,2]
[340568581,1729502855175,-2512.05,0.00016438,2]
[340568582,1729502855197,-500.0,0.00016438,2]
[340568583,1729502855221,-500.0,0.00016438,2]
[340568584,1729502855243,-1229.47,0.00016438,2]
[340568585,1729502855266,-500.0,0.00016438,2]
[340568586,1729502855288,-899.06,0.00016438,2]
[340568587,1729502855312,-941.31,0.00016438,2]
[340568588,1729502855333,-500.0,0.00016438,2]
[340568589,1729502855355,-3632.26,0.00016438,2]
[340568590,1729502855622,-500.0,0.00016438,2]
[340568591,1729502855644,-500.0,0.00016438,2]
[340568592,1729502855666,-1300.28,0.00016438,2]
[340568593,1729502855687,-500.0,0.00016438,2]
[340568594,1729502855708,-500.0,0.00016438,2]
[340568595,1729502855729,-1876.19,0.00016438,2]
[340568596,1729502855751,-500.0,0.00016438,2]
[340568597,1729502855772,-500.0,0.00016438,2]
[340568598,1729502855793,-1493.45,0.00016438,2]
[340568599,1729502855815,-500.0,0.00016438,2]
[340568600,1729502855836,-531.84495985,0.00016438,2]
[340568601,1729502855856,-500.0,0.00016438,2]
[340568602,1729502855878,-1315.46,0.00016438,2]
[340568603,1729502855900,-500.0,0.00016438,2]
[340568604,1729502855922,-500.0,0.00016438,2]
[340568605,1729502855944,-2876.62,0.00016438,2]
[340568606,1729502855969,-500.0,0.00016438,2]
[340568607,1729502855991,-1280.87,0.00016438,2]
[340568608,1729502856014,-500.0,0.00016438,2]
[340568609,1729502856035,-1972.29,0.00016438,2]
[340568610,1729502856057,-1179.29,0.00016438,2]
[340568611,1729502856078,-773.69,0.00016438,2]
[340568612,1729502856099,-500.0,0.00016438,2]
[340568613,1729502856121,-500.0,0.00016438,2]
[340568614,1729502856147,-500.0,0.00016438,2]
[340568615,1729502856168,-500.0,0.00016438,2]
[340568616,1729502856194,-500.0,0.00016438,2]
[340568617,1729502856217,-500.0,0.00016438,2]
[340568618,1729502856238,-500.0,0.00016438,2]
[340568619,1729502856260,-500.0,0.00016438,2]
[340568620,1729502856281,-2165.07,0.00016438,2]
[340568621,1729502856302,-2319.63,0.00016438,2]
[340568622,1729502856324,-500.0,0.00016438,2]
[340568623,1729502856344,-500.0,0.00016438,2]
[340568624,1729502856367,-500.0,0.00016438,2]
[340568625,1729502856388,-500.0,0.00016438,2]
[340568626,1729502856409,-500.0,0.00016438,2]
[340568627,1729502856431,-709.56,0.00016438,2]
[340568628,1729502856452,-500.0,0.00016438,2]
[340568629,1729502856473,-807.19,0.00016438,2]
[340568630,1729502856494,-500.0,0.00016438,2]
[340568631,1729502856515,-1685.8,0.00016438,2]
[340568632,1729502856536,-500.0,0.00016438,2]
[340568633,1729502856561,-500.0,0.00016438,2]
[340568634,1729502856583,-1258.79,0.00016438,2]
[340568635,1729502856604,-500.0,0.00016438,2]
[340568636,1729502856625,-500.0,0.00016438,2]
[340568637,1729502856647,-500.0,0.00016438,2]
[340568638,1729502856668,-500.0,0.00016438,2]
[340568639,1729502856690,-500.0,0.00016438,2]
[340568640,1729502856711,-500.0,0.00016438,2]
[340568641,1729502856732,-500.0,0.00016438,2]
[340568642,1729502856753,-500.0,0.00016438,2]
[340568643,1729502856774,-500.0,0.00016438,2]
[340568644,1729502856795,-500.0,0.00016438,2]
[340568645,1729502856815,-315.79990655,0.00016438,2]
[340568646,1729502856836,-632.43,0.00016438,2]
[340568647,1729502856856,-500.0,0.00016438,2]
[340568648,1729502856879,-792.58,0.00016438,2]
[340568649,1729502856900,-876.42,0.00016438,2]
[340568650,1729502856922,-500.0,0.00016438,2]
[340568651,1729502856943,-500.0,0.00016438,2]
[340568652,1729502856968,-500.0,0.00016438,2]
[340568653,1729502856990,-500.0,0.00016438,2]
[340568654,1729502857011,-500.0,0.00016438,2]
[340568655,1729502857031,-994.2,0.00016438,2]
[340568656,1729502857056,-2226.56,0.00016438,2]
[340568657,1729502857078,-500.0,0.00016438,2]
[340568658,1729502857099,-500.0,0.00016438,2]
[340568659,1729502857119,-500.0,0.00016438,2]
[340568660,1729502857150,-500.0,0.00016438,2]
[340568661,1729502857172,-528.12,0.00016438,2]
[340568662,1729502857194,-500.0,0.00016438,2]
[340568663,1729502857217,-1037.32,0.00016438,2]
[340568664,1729502857238,-500.0,0.00016438,2]
[340568665,1729502857260,-2364.63,0.00016438,2]
[340568666,1729502857282,-1236.98,0.00016438,2]
[340568667,1729502857303,-500.0,0.00016438,2]
[340568668,1729502857324,-898.58,0.00016438,2]
[340568669,1729502857345,-500.0,0.00016438,2]
[340568670,1729502857368,-500.0,0.00016438,2]
[340568671,1729502857388,-320.33530664,0.00016438,2]
[340568672,1729502857410,-500.0,0.00016438,2]
[340568673,1729502857431,-2153.43,0.00016438,2]
[340568674,1729502857451,-500.0,0.00016438,2]
[340568675,1729502857473,-1576.2,0.00016438,2]
[340568676,1729502857493,-500.0,0.00016438,2]
[340568677,1729502857514,-500.0,0.00016438,2]
[340568678,1729502857535,-1139.94,0.00016438,2]
[340568679,1729502857556,-500.0,0.00016438,2]
[340568680,1729502857577,-500.0,0.00016438,2]
[340568681,1729502857598,-500.0,0.00016438,2]
[340568682,1729502857619,-500.0,0.00016438,2]
[340568683,1729502857639,-500.0,0.00016438,2]
[340568684,1729502857661,-500.0,0.00016438,2]
[340568685,1729502857681,-500.0,0.00016438,2]
[340568686,1729502857702,-3174.3,0.00016438,2]